[Event "Titled Tuesday Blitz August 02 Early 2022"]
[White "Martinez Alcantara, Jose Eduardo"]
[Black "Aldokhin, Ivan"]
[WhiteFideId "3805662"]
[BlackFideId "24115720"]
[WhiteElo "2703"]
[BlackElo "2246"]
[Result "1-0"]
[Round "02"]
[TimeControl "180+1"]
[Date "2022.08.02"]
[WhiteClock "0:01:05"]
[BlackClock "0:00:04"]

1. e4 {[%clk 0:03:00]}  c5 {[%clk 0:02:59]} 2. Nf3 {[%clk 0:03:00]}  e6 {[%clk 0:03:00]} 3. c3 {[%clk 0:03:00]}  Nf6 {[%clk 0:02:59]} 4. Bd3 {[%clk 0:03:00]}  Nc6 {[%clk 0:02:59]} 5. O-O {[%clk 0:02:57]}  d5 {[%clk 0:02:58]} 6. e5 {[%clk 0:02:57]}  Nd7 {[%clk 0:02:59]} 7. Bb5 {[%clk 0:02:58]}  Ndb8 {[%clk 0:02:53]} 8. d4 {[%clk 0:02:58]}  a6 {[%clk 0:02:49]} 9. Bd3 {[%clk 0:02:58]}  Be7 {[%clk 0:02:49]} 10. a3 {[%clk 0:02:57]}  b5 {[%clk 0:02:49]} 11. Be3 {[%clk 0:02:55]}  Nd7 {[%clk 0:02:45]} 12. Nbd2 {[%clk 0:02:55]}  Bb7 {[%clk 0:02:42]} 13. Ne1 {[%clk 0:02:52]}  g6 {[%clk 0:02:14]} 14. f4 {[%clk 0:02:47]}  cxd4 {[%clk 0:02:06]} 15. cxd4 {[%clk 0:02:46]}  Nb6 {[%clk 0:01:58]} 16. b3 {[%clk 0:02:45]}  Rc8 {[%clk 0:01:58]} 17. Nef3 {[%clk 0:02:44]}  Na5 {[%clk 0:01:45]} 18. Qe2 {[%clk 0:02:29]}  Rc3 {[%clk 0:01:38]} 19. Rfb1 {[%clk 0:02:29]}  Qc7 {[%clk 0:01:33]} 20. Bf2 {[%clk 0:02:28]}  O-O {[%clk 0:01:16]} 21. b4 {[%clk 0:02:23]}  Nac4 {[%clk 0:01:09]} 22. Nb3 {[%clk 0:02:24]}  Na4 {[%clk 0:01:02]} 23. Be1 {[%clk 0:02:20]}  Rc8 {[%clk 0:00:50]} 24. g4 {[%clk 0:01:59]}  Ncb6 {[%clk 0:00:46]} 25. Nc5 {[%clk 0:01:57]}  Rc4 {[%clk 0:00:42]} 26. f5 {[%clk 0:01:54]}  Nxc5 {[%clk 0:00:32]} 27. bxc5 {[%clk 0:01:54]}  Na4 {[%clk 0:00:31]} 28. Rc1 {[%clk 0:01:42]}  Nxc5 {[%clk 0:00:22]} 29. Bxc4 {[%clk 0:01:29]}  dxc4 {[%clk 0:00:22]} 30. dxc5 {[%clk 0:01:29]}  Qxc5+ {[%clk 0:00:19]} 31. Bf2 {[%clk 0:01:28]}  Qc6 {[%clk 0:00:16]} 32. Rc3 {[%clk 0:01:28]}  b4 {[%clk 0:00:14]} 33. axb4 {[%clk 0:01:21]}  Bxb4 {[%clk 0:00:15]} 34. Re3 {[%clk 0:01:13]}  Bc5 {[%clk 0:00:15]} 35. Rc3 {[%clk 0:01:13]}  Bd4 {[%clk 0:00:14]} 36. Bxd4 {[%clk 0:01:12]}  Rd8 {[%clk 0:00:14]} 37. Rd1 {[%clk 0:01:11]}  a5 {[%clk 0:00:11]} 38. f6 {[%clk 0:01:11]}  a4 {[%clk 0:00:10]} 39. Qe3 {[%clk 0:01:11]}  Kh8 {[%clk 0:00:06]} 40. Qh6 {[%clk 0:01:08]}  Rg8 {[%clk 0:00:07]} 41. Qxh7+ {[%clk 0:01:03]}  Kxh7 {[%clk 0:00:05]} 42. Ng5+ {[%clk 0:01:04]}  Kh6 {[%clk 0:00:05]} 43. Nxf7+ {[%clk 0:01:04]}  Kh7 {[%clk 0:00:04]} 44. Rh3# {[%clk 0:01:05]} 1-0


[Site "https://www.chess.com"]

[Event "Titled Tuesday Blitz August 02 Early 2022"]
[White "Melikyan, Gnel"]
[Black "Mardov, Dimitar"]
[WhiteFideId "54109990"]
[BlackFideId "30919495"]
[WhiteElo "1772"]
[BlackElo "2185"]
[Result "1-0"]
[Round "02"]
[TimeControl "180+1"]
[Date "2022.08.02"]
[WhiteClock "0:00:12"]
[BlackClock "0:00:05"]

1. e4 {[%clk 0:03:00]}  e5 {[%clk 0:02:59]} 2. Nf3 {[%clk 0:02:56]}  Nc6 {[%clk 0:02:59]} 3. d4 {[%clk 0:02:55]}  exd4 {[%clk 0:02:58]} 4. Nxd4 {[%clk 0:02:56]}  Bb4+ {[%clk 0:02:59]} 5. c3 {[%clk 0:02:55]}  Bc5 {[%clk 0:02:59]} 6. Be3 {[%clk 0:02:55]}  Bb6 {[%clk 0:03:00]} 7. Nf5 {[%clk 0:02:55]}  Bxe3 {[%clk 0:02:59]} 8. Nxe3 {[%clk 0:02:55]}  Nge7 {[%clk 0:02:59]} 9. Bc4 {[%clk 0:02:51]}  O-O {[%clk 0:03:00]} 10. O-O {[%clk 0:02:50]}  d6 {[%clk 0:03:00]} 11. Nd2 {[%clk 0:02:49]}  Kh8 {[%clk 0:02:57]} 12. Re1 {[%clk 0:02:33]}  f5 {[%clk 0:02:55]} 13. exf5 {[%clk 0:02:33]}  Nxf5 {[%clk 0:02:56]} 14. Nxf5 {[%clk 0:02:31]}  Bxf5 {[%clk 0:02:57]} 15. Bd5 {[%clk 0:02:25]}  Qd7 {[%clk 0:02:53]} 16. Nc4 {[%clk 0:02:22]}  h6 {[%clk 0:02:37]} 17. Qd2 {[%clk 0:02:13]}  Rae8 {[%clk 0:02:35]} 18. Rxe8 {[%clk 0:02:12]}  Qxe8 {[%clk 0:02:20]} 19. Re1 {[%clk 0:02:07]}  Qg6 {[%clk 0:02:20]} 20. Qf4 {[%clk 0:01:55]}  Qf6 {[%clk 0:02:08]} 21. h3 {[%clk 0:01:31]}  Nd8 {[%clk 0:01:42]} 22. g4 {[%clk 0:01:11]}  Be6 {[%clk 0:01:34]} 23. Qxf6 {[%clk 0:01:09]}  Rxf6 {[%clk 0:01:35]} 24. Ne3 {[%clk 0:01:02]}  c6 {[%clk 0:01:03]} 25. Bxe6 {[%clk 0:00:36]}  Rxe6 {[%clk 0:01:04]} 26. Rd1 {[%clk 0:00:36]}  Nf7 {[%clk 0:00:56]} 27. c4 {[%clk 0:00:31]}  g6 {[%clk 0:00:52]} 28. Kg2 {[%clk 0:00:27]}  Kg7 {[%clk 0:00:52]} 29. b3 {[%clk 0:00:21]}  a5 {[%clk 0:00:51]} 30. Rd2 {[%clk 0:00:19]}  Ng5 {[%clk 0:00:49]} 31. Nc2 {[%clk 0:00:17]}  Ne4 {[%clk 0:00:42]} 32. Re2 {[%clk 0:00:17]}  Kf6 {[%clk 0:00:42]} 33. Nd4 {[%clk 0:00:16]}  Re7 {[%clk 0:00:43]} 34. a3 {[%clk 0:00:15]}  a4 {[%clk 0:00:37]} 35. b4 {[%clk 0:00:14]}  Nc3 {[%clk 0:00:30]} 36. Rd2 {[%clk 0:00:14]}  Ne4 {[%clk 0:00:21]} 37. Rd3 {[%clk 0:00:14]}  Ng5 {[%clk 0:00:12]} 38. f4 {[%clk 0:00:13]}  Ne6 {[%clk 0:00:11]} 39. Nxe6 {[%clk 0:00:12]}  Rxe6 {[%clk 0:00:12]} 40. Kf3 {[%clk 0:00:13]}  h5 {[%clk 0:00:08]} 41. Re3 {[%clk 0:00:10]}  Rxe3+ {[%clk 0:00:07]} 42. Kxe3 {[%clk 0:00:11]}  hxg4 {[%clk 0:00:04]} 43. hxg4 {[%clk 0:00:11]}  Ke6 {[%clk 0:00:04]} 44. Kd4 {[%clk 0:00:12]}  b6 {[%clk 0:00:03]} 45. b5 {[%clk 0:00:11]}  cxb5 {[%clk 0:00:03]} 46. cxb5 {[%clk 0:00:11]}  d5 {[%clk 0:00:04]} 47. f5+ {[%clk 0:00:11]}  gxf5 {[%clk 0:00:04]} 48. gxf5+ {[%clk 0:00:12]}  Kxf5 {[%clk 0:00:05]} 49. Kxd5 {[%clk 0:00:12]} 1-0


[Site "https://www.chess.com"]

[Event "Titled Tuesday Blitz August 02 Early 2022"]
[White "Navarrete Mendez, Gonzalo Alberto"]
[Black "Boros, Denes"]
[WhiteFideId "5106850"]
[BlackFideId "722340"]
[WhiteElo "2261"]
[BlackElo "2464"]
[Result "1-0"]
[Round "02"]
[TimeControl "180+1"]
[Date "2022.08.02"]
[WhiteClock "0:00:53"]
[BlackClock "0:01:01"]

1. e4 {[%clk 0:03:00]}  c6 {[%clk 0:03:00]} 2. Nc3 {[%clk 0:03:00]}  d5 {[%clk 0:03:01]} 3. Nf3 {[%clk 0:03:00]}  dxe4 {[%clk 0:03:02]} 4. Nxe4 {[%clk 0:03:01]}  Bf5 {[%clk 0:03:03]} 5. Ng3 {[%clk 0:03:00]}  g6 {[%clk 0:03:03]} 6. Nxf5 {[%clk 0:02:56]}  gxf5 {[%clk 0:03:04]} 7. d4 {[%clk 0:02:56]}  Nf6 {[%clk 0:03:05]} 8. Bc4 {[%clk 0:02:48]}  Nbd7 {[%clk 0:03:06]} 9. Qe2 {[%clk 0:02:43]}  Nb6 {[%clk 0:02:53]} 10. Bb3 {[%clk 0:02:33]}  e6 {[%clk 0:02:53]} 11. c3 {[%clk 0:02:28]}  Qc7 {[%clk 0:02:45]} 12. Ne5 {[%clk 0:02:22]}  Bd6 {[%clk 0:02:43]} 13. Bg5 {[%clk 0:02:22]}  Ne4 {[%clk 0:02:42]} 14. Bf4 {[%clk 0:02:11]}  O-O-O {[%clk 0:02:15]} 15. f3 {[%clk 0:02:11]}  Nf6 {[%clk 0:02:13]} 16. Bg5 {[%clk 0:02:06]}  Nbd5 {[%clk 0:01:50]} 17. Bxd5 {[%clk 0:02:02]}  Nxd5 {[%clk 0:01:50]} 18. Bxd8 {[%clk 0:02:01]}  Rxd8 {[%clk 0:01:51]} 19. O-O-O {[%clk 0:01:55]}  Rg8 {[%clk 0:01:46]} 20. g3 {[%clk 0:01:52]}  f4 {[%clk 0:01:44]} 21. Rdg1 {[%clk 0:01:30]}  c5 {[%clk 0:01:37]} 22. Kb1 {[%clk 0:01:07]}  Bxe5 {[%clk 0:01:25]} 23. Qxe5 {[%clk 0:01:01]}  Qxe5 {[%clk 0:01:09]} 24. dxe5 {[%clk 0:01:02]}  Rd8 {[%clk 0:01:09]} 25. gxf4 {[%clk 0:01:00]}  Nxf4 {[%clk 0:01:09]} 26. Rg7 {[%clk 0:00:59]}  Rd2 {[%clk 0:01:07]} 27. Rxf7 {[%clk 0:00:57]}  Nd3 {[%clk 0:01:07]} 28. Rg1 {[%clk 0:00:53]}  Rd1+ {[%clk 0:01:01]} 1-0


[Site "https://www.chess.com"]

[Event "Titled Tuesday Blitz August 02 Early 2022"]
[White "Ohanyan, Emin"]
[Black "Jaskolka, Tomasz"]
[WhiteFideId "13312022"]
[BlackFideId "1170791"]
[WhiteElo "1927"]
[BlackElo "2073"]
[Result "1-0"]
[Round "02"]
[TimeControl "180+1"]
[Date "2022.08.02"]
[WhiteClock "0:00:06"]
[BlackClock "0:00:03"]

1. e4 {[%clk 0:03:00]}  c5 {[%clk 0:03:00]} 2. Nf3 {[%clk 0:03:00]}  e6 {[%clk 0:03:00]} 3. d4 {[%clk 0:03:01]}  cxd4 {[%clk 0:03:01]} 4. Nxd4 {[%clk 0:03:02]}  Nc6 {[%clk 0:03:01]} 5. Nc3 {[%clk 0:03:02]}  Qc7 {[%clk 0:03:02]} 6. Ndb5 {[%clk 0:03:02]}  Qb8 {[%clk 0:03:02]} 7. Be3 {[%clk 0:03:03]}  a6 {[%clk 0:02:59]} 8. Bb6 {[%clk 0:03:04]}  axb5 {[%clk 0:02:58]} 9. Nxb5 {[%clk 0:03:05]}  Bb4+ {[%clk 0:02:58]} 10. c3 {[%clk 0:03:06]}  Ba5 {[%clk 0:02:59]} 11. Nd6+ {[%clk 0:03:06]}  Kf8 {[%clk 0:02:54]} 12. Bc5 {[%clk 0:03:07]}  Nge7 {[%clk 0:02:54]} 13. Qh5 {[%clk 0:03:08]}  Nd8 {[%clk 0:02:17]} 14. Bb5 {[%clk 0:02:51]}  b6 {[%clk 0:02:10]} 15. Ba3 {[%clk 0:02:28]}  Bxc3+ {[%clk 0:01:57]} 16. bxc3 {[%clk 0:02:28]}  Rxa3 {[%clk 0:01:57]} 17. Rd1 {[%clk 0:02:29]}  Rxa2 {[%clk 0:01:32]} 18. O-O {[%clk 0:02:29]}  Ra5 {[%clk 0:01:24]} 19. c4 {[%clk 0:02:26]}  Ba6 {[%clk 0:01:19]} 20. Qf3 {[%clk 0:02:21]}  Bxb5 {[%clk 0:01:17]} 21. cxb5 {[%clk 0:02:22]}  h5 {[%clk 0:00:58]} 22. Nc4 {[%clk 0:01:35]}  Rxb5 {[%clk 0:00:56]} 23. Rxd7 {[%clk 0:01:34]}  Ndc6 {[%clk 0:00:30]} 24. Rfd1 {[%clk 0:01:00]}  Rh6 {[%clk 0:00:24]} 25. Nd6 {[%clk 0:00:47]}  Ne5 {[%clk 0:00:23]} 26. Qa3 {[%clk 0:00:36]}  Ra5 {[%clk 0:00:20]} 27. Nc8 {[%clk 0:00:23]}  Nxd7 {[%clk 0:00:11]} 28. Qxe7+ {[%clk 0:00:23]}  Kg8 {[%clk 0:00:11]} 29. Qxd7 {[%clk 0:00:19]}  Rf6 {[%clk 0:00:09]} 30. Nd6 {[%clk 0:00:14]}  Qa8 {[%clk 0:00:08]} 31. Ne8 {[%clk 0:00:08]}  Rf4 {[%clk 0:00:07]} 32. g3 {[%clk 0:00:08]}  Rxe4 {[%clk 0:00:07]} 33. Nc7 {[%clk 0:00:07]}  Qb7 {[%clk 0:00:04]} 34. Qd8+ {[%clk 0:00:06]}  Kh7 {[%clk 0:00:04]} 35. Ne8 {[%clk 0:00:06]}  Re2 {[%clk 0:00:03]} 36. Nd6 {[%clk 0:00:05]}  Qc6 {[%clk 0:00:02]} 37. Nxf7 {[%clk 0:00:04]}  Qf3 {[%clk 0:00:02]} 38. Ng5+ {[%clk 0:00:04]}  Kg6 {[%clk 0:00:03]} 39. Nxf3 {[%clk 0:00:05]}  Raa2 {[%clk 0:00:03]} 40. Nh4+ {[%clk 0:00:05]}  Kh7 {[%clk 0:00:03]} 41. Qd3+ {[%clk 0:00:06]}  Kh6 {[%clk 0:00:03]} 42. Qg6# {[%clk 0:00:06]} 1-0


[Site "https://www.chess.com"]

[Event "Titled Tuesday Blitz August 02 Early 2022"]
[White "Rodchenkov, Sergey D."]
[Black "Alekseenko, Kirill"]
[WhiteFideId "4168712"]
[BlackFideId "4135539"]
[WhiteElo "2293"]
[BlackElo "2682"]
[Result "0-1"]
[Round "02"]
[TimeControl "180+1"]
[Date "2022.08.02"]
[WhiteClock "0:02:53"]
[BlackClock "0:02:50"]

1. e4 {[%clk 0:03:00]}  Nc6 {[%clk 0:02:55]} 2. d4 {[%clk 0:02:59]}  d5 {[%clk 0:02:55]} 3. e5 {[%clk 0:02:59]}  Bf5 {[%clk 0:02:55]} 4. c3 {[%clk 0:03:00]}  e6 {[%clk 0:02:55]} 5. Bd3 {[%clk 0:03:00]}  Nge7 {[%clk 0:02:55]} 6. h4 {[%clk 0:02:58]}  h5 {[%clk 0:02:55]} 7. Bg5 {[%clk 0:02:58]}  Qd7 {[%clk 0:02:54]} 8. Ne2 {[%clk 0:02:57]}  Bxd3 {[%clk 0:02:53]} 9. Qd2 {[%clk 0:02:58]}  Bxe2 {[%clk 0:02:51]} 10. Qxe2 {[%clk 0:02:54]}  Nf5 {[%clk 0:02:51]} 11. f3 {[%clk 0:02:53]}  Ng3 {[%clk 0:02:50]} 0-1


[Site "https://www.chess.com"]

[Event "Titled Tuesday Blitz August 02 Early 2022"]
[White "Sarana, Alexey"]
[Black "Nguyen, Quoc Hy"]
[WhiteFideId "24133795"]
[BlackFideId "12410853"]
[WhiteElo "2666"]
[BlackElo "1938"]
[Result "1-0"]
[Round "02"]
[TimeControl "180+1"]
[Date "2022.08.02"]
[WhiteClock "0:01:31"]
[BlackClock "0:00:23"]

1. c4 {[%clk 0:03:00]}  e5 {[%clk 0:02:57]} 2. g3 {[%clk 0:03:00]}  Nf6 {[%clk 0:02:56]} 3. Bg2 {[%clk 0:03:01]}  d5 {[%clk 0:02:56]} 4. cxd5 {[%clk 0:03:00]}  Nxd5 {[%clk 0:02:57]} 5. Nc3 {[%clk 0:02:59]}  Nb6 {[%clk 0:02:57]} 6. d3 {[%clk 0:02:58]}  Be7 {[%clk 0:02:57]} 7. Be3 {[%clk 0:02:55]}  O-O {[%clk 0:02:56]} 8. Rc1 {[%clk 0:02:54]}  Be6 {[%clk 0:02:54]} 9. Bxb7 {[%clk 0:02:52]}  N8d7 {[%clk 0:02:55]} 10. Bxa8 {[%clk 0:02:50]}  Qxa8 {[%clk 0:02:55]} 11. Nf3 {[%clk 0:02:51]}  f5 {[%clk 0:02:53]} 12. Nb5 {[%clk 0:02:45]}  Nd5 {[%clk 0:02:44]} 13. Nxc7 {[%clk 0:02:38]}  Nxc7 {[%clk 0:02:44]} 14. Rxc7 {[%clk 0:02:39]}  f4 {[%clk 0:02:37]} 15. gxf4 {[%clk 0:02:39]}  exf4 {[%clk 0:02:36]} 16. Bd4 {[%clk 0:02:36]}  Bb4+ {[%clk 0:02:26]} 17. Bc3 {[%clk 0:02:34]}  Bd6 {[%clk 0:02:26]} 18. Rg1 {[%clk 0:02:30]}  Rf7 {[%clk 0:02:11]} 19. Ng5 {[%clk 0:02:25]}  Bxc7 {[%clk 0:02:11]} 20. Nxe6 {[%clk 0:02:22]}  Be5 {[%clk 0:02:06]} 21. Ng5 {[%clk 0:02:22]}  Bxc3+ {[%clk 0:01:29]} 22. bxc3 {[%clk 0:02:23]}  Rf5 {[%clk 0:01:29]} 23. Qb3+ {[%clk 0:02:22]}  Qd5 {[%clk 0:01:29]} 24. Ne6 {[%clk 0:02:16]}  Kf7 {[%clk 0:01:17]} 25. Qxd5 {[%clk 0:01:38]}  Rxd5 {[%clk 0:01:17]} 26. Nxf4 {[%clk 0:01:38]}  Ra5 {[%clk 0:01:17]} 27. Kd2 {[%clk 0:01:39]}  Rxa2+ {[%clk 0:01:17]} 28. Ke3 {[%clk 0:01:39]}  a5 {[%clk 0:01:08]} 29. Rb1 {[%clk 0:01:40]}  g5 {[%clk 0:00:49]} 30. Nd5 {[%clk 0:01:38]}  Ke6 {[%clk 0:00:49]} 31. c4 {[%clk 0:01:36]}  a4 {[%clk 0:00:48]} 32. Rb7 {[%clk 0:01:35]}  a3 {[%clk 0:00:45]} 33. Ra7 {[%clk 0:01:35]}  Ra1 {[%clk 0:00:40]} 34. Nc7+ {[%clk 0:01:36]}  Kd6 {[%clk 0:00:30]} 35. Nb5+ {[%clk 0:01:36]}  Ke6 {[%clk 0:00:30]} 36. Rxa3 {[%clk 0:01:33]}  Rh1 {[%clk 0:00:30]} 37. Ra6+ {[%clk 0:01:33]}  Kf5 {[%clk 0:00:29]} 38. Rh6 {[%clk 0:01:31]}  Nf6 {[%clk 0:00:28]} 39. Nd4+ {[%clk 0:01:30]}  Ke5 {[%clk 0:00:29]} 40. f3 {[%clk 0:01:26]}  g4 {[%clk 0:00:27]} 41. f4+ {[%clk 0:01:26]}  Kd6 {[%clk 0:00:24]} 42. Rxf6+ {[%clk 0:01:26]}  Kd7 {[%clk 0:00:22]} 43. Rf7+ {[%clk 0:01:26]}  Kc8 {[%clk 0:00:19]} 44. Rxh7 {[%clk 0:01:26]}  g3 {[%clk 0:00:20]} 45. hxg3 {[%clk 0:01:26]}  Rxh7 {[%clk 0:00:20]} 46. g4 {[%clk 0:01:27]}  Kd7 {[%clk 0:00:21]} 47. g5 {[%clk 0:01:28]}  Re7+ {[%clk 0:00:21]} 48. Kf3 {[%clk 0:01:28]}  Ke8 {[%clk 0:00:22]} 49. e4 {[%clk 0:01:28]}  Rd7 {[%clk 0:00:23]} 50. Ke3 {[%clk 0:01:28]}  Kf7 {[%clk 0:00:23]} 51. e5 {[%clk 0:01:29]}  Ra7 {[%clk 0:00:23]} 52. Ke4 {[%clk 0:01:29]}  Kg6 {[%clk 0:00:24]} 53. Ne6 {[%clk 0:01:29]}  Ra4 {[%clk 0:00:22]} 54. f5+ {[%clk 0:01:30]}  Kf7 {[%clk 0:00:22]} 55. g6+ {[%clk 0:01:31]}  Ke7 {[%clk 0:00:23]} 56. g7 {[%clk 0:01:31]}  Ra8 {[%clk 0:00:23]} 57. Ng5 {[%clk 0:01:31]} 1-0


[Site "https://www.chess.com"]

[Event "Titled Tuesday Blitz August 02 Early 2022"]
[White "Seo, Jung Min"]
[Black "Volkov, Maksim"]
[WhiteFideId "1734687"]
[BlackFideId "54123070"]
[WhiteElo "2414"]
[BlackElo "2155"]
[Result "1-0"]
[Round "02"]
[TimeControl "180+1"]
[Date "2022.08.02"]
[WhiteClock "0:01:10"]
[BlackClock "0:00:25"]

1. e4 {[%clk 0:03:00]}  c5 {[%clk 0:02:59]} 2. Nf3 {[%clk 0:03:00]}  d6 {[%clk 0:03:00]} 3. Bb5+ {[%clk 0:03:00]}  Nd7 {[%clk 0:02:59]} 4. d4 {[%clk 0:02:59]}  cxd4 {[%clk 0:02:59]} 5. Nxd4 {[%clk 0:02:59]}  a6 {[%clk 0:02:59]} 6. Bd3 {[%clk 0:02:59]}  e6 {[%clk 0:02:49]} 7. O-O {[%clk 0:02:58]}  Ngf6 {[%clk 0:02:49]} 8. c4 {[%clk 0:02:58]}  Qc7 {[%clk 0:02:46]} 9. Nc3 {[%clk 0:02:57]}  b6 {[%clk 0:02:46]} 10. Re1 {[%clk 0:02:57]}  Bb7 {[%clk 0:02:46]} 11. b3 {[%clk 0:02:53]}  g6 {[%clk 0:02:43]} 12. Bb2 {[%clk 0:02:38]}  Bg7 {[%clk 0:02:42]} 13. Rc1 {[%clk 0:02:35]}  O-O {[%clk 0:02:40]} 14. Bb1 {[%clk 0:02:34]}  Rac8 {[%clk 0:02:39]} 15. Qd2 {[%clk 0:02:34]}  Qb8 {[%clk 0:02:37]} 16. Rcd1 {[%clk 0:02:31]}  Rfd8 {[%clk 0:02:35]} 17. f3 {[%clk 0:02:31]}  Kh8 {[%clk 0:02:30]} 18. Kh1 {[%clk 0:02:31]}  Qa8 {[%clk 0:02:05]} 19. Qf2 {[%clk 0:02:28]}  Nh5 {[%clk 0:01:58]} 20. Nde2 {[%clk 0:02:20]}  Qb8 {[%clk 0:01:54]} 21. Na4 {[%clk 0:02:19]}  Bxb2 {[%clk 0:01:52]} 22. Nxb2 {[%clk 0:02:19]}  Kg8 {[%clk 0:01:45]} 23. Nd3 {[%clk 0:02:17]}  b5 {[%clk 0:01:44]} 24. cxb5 {[%clk 0:02:15]}  axb5 {[%clk 0:01:45]} 25. Nb4 {[%clk 0:02:13]}  Ne5 {[%clk 0:01:41]} 26. Qd4 {[%clk 0:02:10]}  h6 {[%clk 0:01:33]} 27. Qd2 {[%clk 0:02:09]}  Kh7 {[%clk 0:01:30]} 28. Nd4 {[%clk 0:02:05]}  Qa7 {[%clk 0:01:25]} 29. Nxb5 {[%clk 0:02:03]}  Qb6 {[%clk 0:01:25]} 30. a4 {[%clk 0:01:51]}  g5 {[%clk 0:01:18]} 31. Nd3 {[%clk 0:01:46]}  Ng6 {[%clk 0:01:16]} 32. Qe3 {[%clk 0:01:41]}  Qa5 {[%clk 0:01:15]} 33. e5 {[%clk 0:01:37]}  d5 {[%clk 0:00:49]} 34. Nd6 {[%clk 0:01:37]}  Rc7 {[%clk 0:00:49]} 35. f4 {[%clk 0:01:26]}  g4 {[%clk 0:00:28]} 36. Nf2 {[%clk 0:01:18]}  Kg7 {[%clk 0:00:25]} 37. Bxg6 {[%clk 0:01:16]}  fxg6 {[%clk 0:00:24]} 38. Nxg4 {[%clk 0:01:12]}  Rc2 {[%clk 0:00:25]} 39. Nxb7 {[%clk 0:01:10]} 1-0


[Site "https://www.chess.com"]

[Event "Titled Tuesday Blitz August 02 Early 2022"]
[White "Sjugirov, Sanan"]
[Black "Sadubayev, Airat"]
[WhiteFideId "4189302"]
[BlackFideId "13713264"]
[WhiteElo "2609"]
[BlackElo "2163"]
[Result "1-0"]
[Round "02"]
[TimeControl "180+1"]
[Date "2022.08.02"]
[WhiteClock "0:01:26"]
[BlackClock "0:00:52"]

1. e4 {[%clk 0:03:00]}  e5 {[%clk 0:02:40]} 2. Nf3 {[%clk 0:03:00]}  Nc6 {[%clk 0:02:40]} 3. Bb5 {[%clk 0:03:01]}  a6 {[%clk 0:02:40]} 4. Ba4 {[%clk 0:03:01]}  Nf6 {[%clk 0:02:41]} 5. O-O {[%clk 0:03:01]}  b5 {[%clk 0:02:41]} 6. Bb3 {[%clk 0:03:01]}  Bc5 {[%clk 0:02:42]} 7. d3 {[%clk 0:02:52]}  O-O {[%clk 0:02:39]} 8. a3 {[%clk 0:02:48]}  h6 {[%clk 0:02:32]} 9. Nc3 {[%clk 0:02:47]}  d6 {[%clk 0:02:29]} 10. h3 {[%clk 0:02:46]}  Be6 {[%clk 0:02:24]} 11. Bxe6 {[%clk 0:02:44]}  fxe6 {[%clk 0:02:24]} 12. Be3 {[%clk 0:02:30]}  Bxe3 {[%clk 0:02:09]} 13. fxe3 {[%clk 0:02:31]}  Nh5 {[%clk 0:01:54]} 14. Kh2 {[%clk 0:02:22]}  Qf6 {[%clk 0:01:29]} 15. g4 {[%clk 0:02:15]}  Nf4 {[%clk 0:01:08]} 16. exf4 {[%clk 0:02:14]}  exf4 {[%clk 0:01:09]} 17. d4 {[%clk 0:02:10]}  e5 {[%clk 0:01:06]} 18. Nd5 {[%clk 0:01:48]}  Qf7 {[%clk 0:01:04]} 19. c3 {[%clk 0:01:45]}  h5 {[%clk 0:01:04]} 20. g5 {[%clk 0:01:39]}  Kh8 {[%clk 0:01:00]} 21. dxe5 {[%clk 0:01:35]}  dxe5 {[%clk 0:00:58]} 22. Nh4 {[%clk 0:01:33]}  g6 {[%clk 0:00:54]} 23. Nf3 {[%clk 0:01:28]}  Rad8 {[%clk 0:00:52]} 24. Qe2 {[%clk 0:01:27]}  Qe6 {[%clk 0:00:52]} 25. Rad1 {[%clk 0:01:26]} 1-0


[Site "https://www.chess.com"]

[Event "Titled Tuesday Blitz August 02 Early 2022"]
[White "Steinberg, Nitzan"]
[Black "Concio, Michael Jr."]
[WhiteFideId "2801795"]
[BlackFideId "5217873"]
[WhiteElo "2471"]
[BlackElo "1896"]
[Result "0-1"]
[Round "02"]
[TimeControl "180+1"]
[Date "2022.08.02"]
[WhiteClock "0:00:03"]
[BlackClock "0:00:06"]

1. d4 {[%clk 0:03:00]}  Nf6 {[%clk 0:02:57]} 2. Nf3 {[%clk 0:03:01]}  b6 {[%clk 0:02:55]} 3. c4 {[%clk 0:02:58]}  e6 {[%clk 0:02:55]} 4. a3 {[%clk 0:02:58]}  Bb7 {[%clk 0:02:55]} 5. Nc3 {[%clk 0:02:58]}  c5 {[%clk 0:02:55]} 6. d5 {[%clk 0:02:58]}  exd5 {[%clk 0:02:54]} 7. cxd5 {[%clk 0:02:58]}  d6 {[%clk 0:02:55]} 8. g3 {[%clk 0:02:54]}  g6 {[%clk 0:02:54]} 9. Bg2 {[%clk 0:02:55]}  Bg7 {[%clk 0:02:55]} 10. O-O {[%clk 0:02:55]}  O-O {[%clk 0:02:56]} 11. a4 {[%clk 0:02:56]}  Nbd7 {[%clk 0:02:47]} 12. Nd2 {[%clk 0:02:53]}  Re8 {[%clk 0:02:39]} 13. e4 {[%clk 0:02:53]}  Ne5 {[%clk 0:02:31]} 14. Qc2 {[%clk 0:02:52]}  Qd7 {[%clk 0:02:07]} 15. h3 {[%clk 0:02:42]}  Ba6 {[%clk 0:02:00]} 16. Re1 {[%clk 0:02:29]}  Nd3 {[%clk 0:01:54]} 17. Re3 {[%clk 0:02:26]}  Nb4 {[%clk 0:01:51]} 18. Qb3 {[%clk 0:02:13]}  Bh6 {[%clk 0:01:47]} 19. f4 {[%clk 0:02:13]}  g5 {[%clk 0:01:32]} 20. Nc4 {[%clk 0:01:41]}  Bxc4 {[%clk 0:01:21]} 21. Qxc4 {[%clk 0:01:40]}  Nc2 {[%clk 0:01:21]} 22. Rf3 {[%clk 0:01:32]}  gxf4 {[%clk 0:00:59]} 23. Bxf4 {[%clk 0:01:33]}  Bxf4 {[%clk 0:00:56]} 24. Rxf4 {[%clk 0:01:34]}  Nh5 {[%clk 0:00:40]} 25. Rg4+ {[%clk 0:01:34]}  Kh8 {[%clk 0:00:40]} 26. Rg5 {[%clk 0:01:09]}  Rg8 {[%clk 0:00:37]} 27. Rxh5 {[%clk 0:00:54]}  Rxg3 {[%clk 0:00:37]} 28. Qe2 {[%clk 0:00:25]}  Ne3 {[%clk 0:00:33]} 29. Kh1 {[%clk 0:00:18]}  Nxg2 {[%clk 0:00:27]} 30. Kh2 {[%clk 0:00:10]}  Rag8 {[%clk 0:00:08]} 31. Rf1 {[%clk 0:00:09]}  Ne3 {[%clk 0:00:04]} 32. Rf2 {[%clk 0:00:06]}  Rg2+ {[%clk 0:00:03]} 33. Kh1 {[%clk 0:00:03]}  Rg1+ {[%clk 0:00:03]} 34. Kh2 {[%clk 0:00:04]}  R8g2+ {[%clk 0:00:04]} 35. Rxg2 {[%clk 0:00:04]}  Rxg2+ {[%clk 0:00:04]} 36. Qxg2 {[%clk 0:00:05]}  Nxg2 {[%clk 0:00:05]} 37. Kxg2 {[%clk 0:00:06]}  Qe7 {[%clk 0:00:05]} 38. Rf5 {[%clk 0:00:06]}  Qh4 {[%clk 0:00:04]} 39. Rxf7 {[%clk 0:00:06]}  Qg5+ {[%clk 0:00:04]} 40. Kf1 {[%clk 0:00:02]}  Qc1+ {[%clk 0:00:03]} 41. Kf2 {[%clk 0:00:02]}  Qxb2+ {[%clk 0:00:03]} 42. Ne2 {[%clk 0:00:03]}  Qe5 {[%clk 0:00:03]} 43. Rxa7 {[%clk 0:00:03]}  Qxe4 {[%clk 0:00:03]} 44. Ra8+ {[%clk 0:00:03]}  Kg7 {[%clk 0:00:03]} 45. Ng3 {[%clk 0:00:03]}  Qxd5 {[%clk 0:00:02]} 46. Ra7+ {[%clk 0:00:04]}  Kg6 {[%clk 0:00:03]} 47. Re7 {[%clk 0:00:03]}  Qa2+ {[%clk 0:00:03]} 48. Kf3 {[%clk 0:00:03]}  Kf6 {[%clk 0:00:04]} 49. Re3 {[%clk 0:00:04]}  Qd5+ {[%clk 0:00:04]} 50. Ne4+ {[%clk 0:00:04]}  Kf5 {[%clk 0:00:04]} 51. h4 {[%clk 0:00:03]}  c4 {[%clk 0:00:05]} 52. h5 {[%clk 0:00:03]}  h6 {[%clk 0:00:05]} 53. a5 {[%clk 0:00:02]}  bxa5 {[%clk 0:00:05]} 54. Ke2 {[%clk 0:00:03]}  Qxe4 {[%clk 0:00:05]} 55. Rxe4 {[%clk 0:00:03]}  Kxe4 {[%clk 0:00:06]} 0-1


[Site "https://www.chess.com"]